bitfinex/quotes_ETHUSD_20220226
["timestamp","ask_amount","ask_price","bid_price","bid_amount"]
[1645910450895,1.39593286,2848.6,2848.0,1.48420213]
[1645910451094,1.39244074,2848.6,2848.0,1.48420213]
[1645910451295,0.22632899,2848.7,2847.9,6.9818987]
[1645910451501,0.00309177,2848.3,2848.0,1.48414899]
[1645910452000,0.00309177,2848.3,2848.1,0.878]
[1645910452203,0.00349212,2848.6,2848.2,5.33704899]
[1645910452401,0.22632899,2848.7,2848.4,0.3529]
[1645910452402,0.23869438,2848.7,2848.4,0.3529]
[1645910452706,0.23869438,2848.7,2848.2,5.9887018]
[1645910452998,0.23869438,2848.7,2848.2,2.47796]
[1645910453198,0.23869438,2848.7,2848.2,1.17796]
[1645910453400,0.22632899,2848.7,2848.3,1.48403515]
[1645910453595,0.00309182,2848.6,2848.2,1.17796]
[1645910453899,0.00309182,2848.6,2848.1,1.75591]
[1645910454347,0.00309182,2848.6,2848.1,2.6339533]
[1645910454548,0.22982111,2848.7,2848.1,2.6339533]
[1645910454853,0.00309182,2848.5,2848.1,2.6339533]
[1645910455650,0.22632899,2848.7,2848.1,2.6339533]
[1645910456051,0.00264124,2848.4,2848.1,2.6339533]
[1645910456351,0.22632899,2848.7,2848.1,2.6339533]
[1645910456552,0.22632899,2848.7,2848.4,0.88327248]
[1645910457150,1.48578876,2848.7,2848.4,1.76124458]
[1645910457358,1.48578876,2848.7,2848.4,2.93915458]
[1645910457359,0.22632899,2848.7,2848.4,2.93915458]
[1645910457793,0.22632899,2848.7,2848.4,3.93915458]
[1645910457991,0.22632899,2848.7,2848.4,2.93915458]
[1645910458196,0.22632899,2848.7,2848.4,3.06124458]
[1645910458391,0.22632899,2848.7,2848.4,2.41414458]
[1645910458593,0.22632899,2848.7,2848.5,3.5]
[1645910458793,0.22632899,2848.7,2848.5,2.75556]
[1645910458994,0.22632899,2848.7,2848.5,1.0]
[1645910459195,0.22632899,2848.7,2848.4,5.99473458]
[1645910459399,0.22632899,2848.7,2848.4,5.69473458]
[1645910459799,0.22632899,2848.7,2848.4,6.04763458]
[1645910460196,0.22632899,2848.7,2848.5,0.3529]
[1645910460405,0.22632899,2848.7,2848.6,3.8529]
[1645910460601,0.00349212,2849.6,2848.8,1.7551577]
[1645910460798,2.776,2849.7,2848.8,1.7551577]
[1645910460799,0.01233902,2849.2,2849.0,0.8776]
[1645910460999,0.00349212,2849.8,2849.1,0.3529]
[1645910461201,0.00349212,2850.1,2849.2,0.3]
[1645910461402,0.00349212,2849.8,2849.3,1.75486]
[1645910461645,1.24885182,2850.2,2849.3,1.75486]
[1645910461844,0.00349212,2850.1,2849.5,0.8775914]
[1645910462044,1.24885182,2850.2,2849.5,0.8775914]
[1645910462649,0.3529,2850.1,2849.1,0.5]
[1645910462848,3.80004375,2850.1,2849.1,0.5]
[1645910463051,0.35639212,2850.1,2849.1,0.5]
[1645910463247,5.61356911,2850.0,2849.1,0.5]
[1645910463448,5.61356911,2850.0,2848.4,0.00528248]
[1645910463449,11.40356911,2850.0,2848.4,0.00528248]
[1645910463647,0.00349212,2849.9,2848.5,1.48383736]
[1645910463849,16.35706123,2850.0,2848.4,0.88324248]
[1645910464047,11.1429,2850.0,2848.4,1.18324248]
[1645910464247,0.61695241,2850.0,2848.5,0.8779149]
[1645910464447,0.3529,2849.9,2848.5,0.8779149]
[1645910465596,1.0,2850.1,2848.6,1.17787]
[1645910465793,1.0,2850.1,2848.8,1.7555613]
[1645910465794,0.00305437,2849.3,2848.8,1.7555613]
[1645910465995,1.09409492,2849.3,2848.7,1.7555931]
[1645910466189,1.09409492,2849.3,2848.6,0.00546092]
[1645910466791,8.3382,2849.2,2848.4,0.00528248]
[1645910466991,1.38461275,2848.6,2848.4,0.00528248]
[1645910467194,8.3382,2849.2,2848.4,0.00528248]
[1645910468202,10.79,2849.0,2848.4,0.00528248]
[1645910468396,3.45562755,2849.0,2848.4,0.00528248]
[1645910468594,0.21455863,2848.9,2848.4,0.00528248]
[1645910468797,0.25192822,2849.0,2848.4,0.00528248]
[1645910469057,1.24371871,2849.1,2848.4,0.00528248]
[1645910469641,1.35799505,2848.5,2848.4,0.00528248]
[1645910470242,1.1226522,2848.5,2848.4,0.00528248]
[1645910470647,0.0034758,2849.0,2848.4,0.88326448]
[1645910470855,11.2429,2849.2,2848.1,2.86626926]
[1645910470856,11.5,2849.1,2848.1,2.86626926]
[1645910471060,11.5,2849.1,2847.2,0.25]
[1645910471061,0.01291346,2848.2,2847.2,0.25]
[1645910471350,0.422,2848.1,2847.6,1.0]
[1645910471548,0.01638926,2848.2,2847.6,1.0]
[1645910471549,0.01291346,2848.2,2847.6,1.0]
[1645910471947,3.51291346,2848.2,2847.6,1.0]
[1645910472348,3.5,2848.2,2847.6,1.0]
[1645910472787,0.0034758,2848.3,2847.6,1.0]
[1645910472994,0.0034758,2848.3,2846.8,7.36]
[1645910472995,0.3529,2848.2,2846.8,7.36]
[1645910473198,1.07664038,2847.3,2846.9,1.48429517]
[1645910473400,1.07664038,2847.3,2847.1,0.5]
[1645910473594,1.07664038,2847.3,2847.2,1.48429517]
[1645910474695,1.07664038,2847.3,2847.1,0.5]
[1645910474906,1.07664038,2847.3,2846.3,0.65206258]
[1645910474907,3.8529,2847.2,2846.3,0.65206258]
[1645910475097,3.8529,2847.2,2846.3,1.48448854]
[1645910475098,3.7529,2847.2,2846.3,1.48448854]
[1645910475296,3.4,2847.2,2846.4,1.48448854]
[1645910475497,3.4,2847.2,2846.5,1.48448854]
[1645910475498,8.2693,2847.2,2846.5,1.48448854]
[1645910475696,8.2693,2847.2,2846.2,0.65206258]
[1645910475903,8.2693,2847.2,2846.3,0.65206258]
[1645910476294,8.2693,2847.2,2846.3,0.95206258]
[1645910476541,6.68586972,2847.2,2846.6,0.00547046]
[1645910476735,6.68586972,2847.2,2846.7,1.48448854]
[1645910477735,6.68586972,2847.2,2846.8,1.48448854]
[1645910477943,6.68586972,2847.2,2846.9,1.48448854]
[1645910478146,5.4644,2847.9,2846.4,0.65206258]
[1645910478147,3.5,2847.9,2847.0,1.83738854]
[1645910478345,2.8942758,2848.0,2847.1,1.48448854]
[1645910478548,2.8908,2848.0,2847.2,1.48448854]
[1645910478743,2.8908,2848.0,2847.3,1.48448854]
[1645910478744,7.975,2847.9,2847.3,1.48448854]
[1645910478945,7.975,2847.9,2847.4,1.48448854]
[1645910479142,7.975,2847.9,2847.5,1.48448854]
[1645910479143,1.02177193,2847.8,2847.5,1.48448854]
[1645910479344,7.975,2847.9,2847.5,1.48448854]
[1645910479543,7.975,2847.9,2847.6,1.48448854]
[1645910479744,7.975,2847.9,2847.2,7.36]
[1645910479944,7.975,2847.9,2847.3,1.48424642]
[1645910480145,7.975,2847.9,2847.6,0.00546823]
[1645910480391,1.25319163,2847.8,2847.6,0.00546823]
[1645910480589,4.75319163,2847.8,2847.6,0.00546823]
[1645910480988,1.25319163,2847.8,2847.6,0.00546823]
[1645910481194,4.75319163,2847.8,2847.2,7.36]
[1645910481389,4.75319163,2847.8,2847.6,0.00546831]
[1645910481791,3.5,2847.7,2847.6,0.00546831]
[1645910482389,3.5,2847.7,2847.2,7.36]
[1645910482592,3.5,2847.7,2846.4,0.90206258]
[1645910482593,22.29,2847.6,2846.4,0.90206258]
[1645910482796,10.79,2847.4,2846.5,1.48457647]
[1645910482996,10.79,2847.1,2846.5,1.48457647]
[1645910483195,10.79,2847.1,2845.9,1.15206258]
[1645910483196,0.1847059,2846.8,2846.0,1.48457647]
[1645910483397,4.5636059,2846.8,2846.1,1.48486209]
[1645910483597,0.422,2846.9,2846.2,1.48486209]
[1645910483806,1.03402556,2846.4,2846.0,1.48486209]
[1645910485045,1.03402556,2846.4,2846.1,0.00436285]
[1645910485046,3.5,2846.3,2846.1,0.00436285]
[1645910485846,1.38692556,2846.4,2845.4,0.65206258]
[1645910486045,3.5,2846.3,2845.4,1.48490933]
[1645910486248,3.5,2846.3,2846.1,0.00436285]
[1645910486451,1.03402556,2846.4,2846.1,0.00436285]
[1645910487046,1.03402556,2846.4,2845.9,0.5]
[1645910487047,14.29,2846.3,2845.9,0.5]
[1645910487250,3.5,2846.3,2846.0,1.48492866]
[1645910487549,14.29,2846.3,2846.1,0.00528532]
[1645910487808,14.29,2846.2,2846.1,0.00528532]
[1645910488410,14.29,2846.2,2845.9,0.5]
[1645910488611,3.5,2846.2,2846.0,0.00546603]
[1645910489626,3.5,2846.2,2845.9,0.5]
[1645910489812,3.5,2846.2,2846.0,0.00546611]
[1645910490513,10.79,2846.1,2846.0,0.00546611]
[1645910490712,14.29,2846.1,2845.9,0.5]
[1645910490914,3.5,2846.3,2846.0,0.00546611]
[1645910491314,4.5,2846.3,2846.0,0.00546611]
[1645910491560,10.79,2846.2,2846.0,0.00546611]
[1645910491857,3.5,2846.1,2845.9,0.5]
[1645910492258,4.79211556,2846.4,2846.0,0.00546603]
[1645910492259,2.03402556,2846.4,2846.0,0.00546603]
[1645910492458,1.03402556,2846.4,2846.0,0.00546603]
[1645910493160,1.03402556,2846.4,2845.9,0.5]
[1645910493363,1.03402556,2846.4,2846.1,0.00546595]
[1645910493562,0.93402556,2846.4,2846.1,0.00546595]
[1645910494268,0.93402556,2846.4,2845.9,0.5]
[1645910494666,0.93402556,2846.4,2846.1,0.00546587]
[1645910495490,0.93402556,2846.4,2845.9,0.5]
[1645910495888,0.93402556,2846.4,2846.1,0.00546587]
[1645910496489,0.00896301,2846.6,2846.5,0.64984866]
[1645910496693,1.2495782,2846.6,2846.5,0.64984866]
[1645910499741,1.24061519,2846.6,2846.5,0.64984866]
[1645910499943,7.4394,2846.8,2846.5,0.64984866]
[1645910500742,7.4394,2846.8,2846.0,7.36]
[1645910500942,23.6514,2846.8,2846.0,7.36]
[1645910501142,23.90480973,2846.8,2846.0,7.36]
[1645910501742,0.87896,2846.7,2846.0,7.36]
[1645910501944,7.4394,2846.8,2846.1,1.48469244]
[1645910502787,7.4394,2846.8,2846.0,7.36]
[1645910502993,7.4394,2846.8,2846.3,0.00546555]
[1645910503193,1.21618266,2846.7,2846.3,0.00546555]
[1645910503993,1.21618266,2846.7,2846.0,7.36]
[1645910504193,7.4394,2846.8,2846.4,0.00546547]
[1645910505196,7.4394,2846.8,2846.0,7.36]
[1645910505495,1.38836606,2846.2,2846.0,7.36]
[1645910505696,2.03173159,2847.4,2845.6,0.25]
[1645910505900,0.11582748,2848.2,2846.3,0.01258802]
[1645910506100,0.0034758,2848.9,2847.5,0.01232901]
[1645910506304,0.140726,2849.4,2848.2,0.01207642]
[1645910506305,0.0034758,2849.1,2848.2,0.01207642]
[1645910506564,0.140726,2849.4,2848.3,7.7958]
[1645910506565,0.0034758,2849.3,2848.3,7.7958]
[1645910506747,0.0034758,2849.3,2849.1,0.5]
[1645910506945,1.28562743,2850.1,2849.1,1.2801]
[1645910507146,1.28562743,2850.1,2849.2,3.5]
[1645910507147,0.0034758,2850.0,2849.2,3.5]
[1645910507351,0.0034758,2850.0,2849.4,5.0]
[1645910507549,34.7053185,2850.5,2849.5,5.697]
[1645910507752,34.7053185,2850.5,2849.8,0.99398017]
[1645910507753,0.00345948,2850.4,2849.8,0.99398017]
[1645910507948,0.00984836,2850.2,2849.9,7.0178]
[1645910508152,0.00984836,2850.2,2849.9,7.5178]
[1645910508351,0.00984836,2850.2,2849.9,7.3678]
[1645910508849,3.5,2850.4,2849.4,2.17728]
[1645910508850,16.5,2850.4,2849.4,2.17728]
[1645910509049,0.00246246,2850.2,2849.1,0.25]
[1645910509250,1.42197239,2849.5,2849.3,3.5]
[1645910509446,0.00246246,2850.2,2849.2,3.5]
[1645910510053,5.0,2850.0,2849.2,3.5]
[1645910510313,5.0,2850.0,2848.7,0.1403]
[1645910510314,0.00246246,2849.8,2848.7,0.1403]
[1645910510516,0.00246246,2849.8,2849.2,0.87764]
[1645910510721,0.00246246,2849.8,2849.3,0.422]
[1645910510916,0.00246246,2849.8,2849.4,5.0]
[1645910511114,0.00984836,2850.3,2849.7,5.0]
[1645910511336,34.7053185,2850.5,2849.7,5.0]
[1645910511337,0.00345924,2850.4,2849.8,8.31724]
[1645910511616,34.7053185,2850.5,2850.2,1.0]
[1645910511812,34.7053185,2850.5,2850.3,9.45633]
[1645910512019,34.7053185,2850.5,2850.4,0.5]
[1645910512220,34.7053185,2850.5,2850.4,0.922]
[1645910512421,14.9110216,2850.5,2850.4,0.4]
[1645910512621,0.00345924,2850.9,2850.4,5.322]
[1645910512816,0.007,2851.2,2850.4,5.222]
[1645910513024,0.007,2851.2,2850.8,1.0]
[1645910513218,0.007,2851.2,2850.6,0.822]
[1645910513422,4.61177511,2850.9,2850.6,0.4]
[1645910513622,4.61177511,2850.9,2849.8,2.69723989]
[1645910513623,11.5,2850.8,2849.7,0.25]
[1645910513921,11.5,2850.8,2849.7,1.54100818]
[1645910513922,15.0,2850.7,2849.7,1.54100818]
[1645910514150,15.0,2850.7,2848.4,3.38264115]
[1645910514151,1.0,2850.1,2848.4,3.38264115]
[1645910514365,1.30007,2850.0,2848.4,0.25]
[1645910514557,0.26215412,2849.8,2847.8,3.6403]
[1645910514758,0.00345918,2849.7,2847.8,0.1403]
[1645910514959,0.506,2849.6,2847.8,4.51851]
[1645910515156,0.506,2849.6,2847.7,5.0]
[1645910515157,0.87822,2849.3,2847.7,5.0]
[1645910515363,0.26713969,2849.1,2847.7,5.0]
[1645910515560,0.26713969,2849.1,2847.6,0.00557944]
[1645910515561,0.50945918,2849.0,2847.6,0.00557944]
[1645910515767,1.93844587,2849.0,2847.6,0.00557944]
[1645910515959,0.23972577,2848.5,2847.6,0.00557944]
[1645910516156,0.22088393,2848.3,2846.6,0.1404]
[1645910516361,7.71562,2848.2,2846.7,1.484109]
[1645910516557,7.71562,2848.2,2846.3,48.58117672]
[1645910516558,1.09204337,2847.1,2846.8,3.5]
[1645910516765,8.96292393,2848.3,2847.8,1.58302196]
[1645910516766,6.9848,2848.3,2847.8,1.58302196]
[1645910517159,2.0,2848.7,2847.9,5.0]
[1645910517359,2.0,2848.7,2847.8,1.58302196]
[1645910517821,2.506,2848.7,2847.8,1.58302196]
[1645910518516,3.506,2848.7,2847.8,1.58302196]
[1645910518718,0.25,2848.6,2847.8,1.58302196]
[1645910518913,2.0,2848.4,2847.8,2.196e-05]
[1645910519113,0.69224575,2848.3,2847.8,2.196e-05]
[1645910519312,0.26391299,2848.2,2847.8,2.196e-05]
[1645910519514,0.26526889,2848.1,2847.8,2.196e-05]
[1645910519714,0.26744447,2848.2,2847.8,2.196e-05]
[1645910519915,2.0,2848.4,2847.8,2.196e-05]
[1645910520517,0.2114697,2849.0,2847.8,2.196e-05]
[1645910520716,2.0,2848.9,2848.0,0.87816]
[1645910520917,2.0,2848.9,2847.8,5.00002196]
[1645910521121,2.23233615,2848.9,2847.8,2.196e-05]
[1645910521546,2.0,2848.5,2847.8,2.196e-05]
[1645910522051,0.19638595,2848.4,2847.8,2.196e-05]
[1645910522862,6.6327,2849.1,2847.8,2.196e-05]
[1645910522863,0.1384,2850.3,2848.3,5.01215801]
[1645910523061,0.7906,2851.0,2849.4,1.1298341]
[1645910523263,0.19080476,2852.0,2850.9,5.0]
[1645910523458,0.06,2852.4,2851.9,5.0]
[1645910523657,0.06,2852.4,2851.0,1.3831041]
[1645910523658,0.06,2852.4,2851.8,0.684]
[1645910523860,0.06,2852.4,2851.4,1.7540285]
[1645910523861,0.00342666,2852.0,2851.4,1.7540285]
[1645910524060,0.01227147,2852.2,2851.0,0.59665]
[1645910524261,1.32274192,2851.2,2850.9,0.1401]
[1645910524456,0.10342666,2852.0,2850.7,0.506]
[1645910524657,0.10342666,2852.0,2850.2,0.506]
[1645910524858,0.10342666,2852.0,2850.3,4.3773674]
[1645910525307,0.00342666,2852.0,2850.4,3.27723]
[1645910525509,1.28848678,2851.9,2850.4,0.6461]
[1645910525707,0.01278695,2851.6,2850.4,0.1401]
[1645910526006,0.01621361,2851.6,2850.9,3.5]
[1645910526203,0.01278695,2851.6,2850.9,3.5]
[1645910526604,0.76322821,2851.7,2850.9,3.5]
[1645910526804,0.76322821,2851.7,2850.9,3.45]
[1645910527204,5.0,2851.3,2850.9,3.45]
[1645910527604,0.22052515,2851.2,2850.9,3.45]
[1645910528008,1.42345096,2851.1,2850.9,3.45]
[1645910528217,1.42345096,2851.1,2849.4,0.1401]
[1645910528218,5.0,2851.0,2849.4,0.1401]
[1645910528416,3.85,2850.9,2849.2,0.506]
[1645910528612,3.85,2850.9,2848.9,0.75]
[1645910528613,2.0,2850.7,2848.9,0.75]
[1645910528808,4.10942666,2850.6,2848.9,0.75]
[1645910529258,5.28951254,2850.6,2848.9,0.75]
[1645910529460,5.28951254,2850.6,2848.4,3.00539]
[1645910529667,6.28951254,2850.6,2848.4,1.77250771]
[1645910529860,6.37100802,2850.6,2848.4,1.77250771]
[1645910530061,0.45811615,2850.3,2848.4,1.77250771]
[1645910530258,4.00942666,2850.2,2848.5,0.1403]
[1645910530462,0.1,2850.1,2848.5,0.1403]
[1645910530660,1.19571181,2849.0,2848.5,0.1403]
[1645910530861,3.50342666,2850.0,2848.5,0.1403]
[1645910531065,5.70755566,2849.9,2848.5,0.1403]
[1645910531261,3.50342666,2849.8,2848.5,0.1403]
[1645910531460,0.506,2849.7,2848.5,0.1403]
[1645910531663,0.25109302,2849.5,2848.5,0.1403]
[1645910531862,1.14725775,2848.6,2848.5,0.1403]
[1645910532062,0.506,2849.3,2848.5,0.1403]
[1645910532260,0.506,2849.5,2848.5,0.1403]
[1645910532895,0.75386584,2849.5,2848.5,0.1403]
[1645910533798,3.5,2849.4,2848.5,0.1403]
[1645910534006,5.0,2849.2,2847.8,2.196e-05]
[1645910534203,4.19922276,2849.1,2847.8,2.196e-05]
[1645910534404,1.24953214,2848.5,2847.8,2.196e-05]
[1645910536110,0.19708604,2848.3,2847.8,2.196e-05]
[1645910536305,0.506,2848.2,2847.8,2.196e-05]
[1645910536548,3.5,2848.1,2847.8,3.50002196]
[1645910536749,1.17084623,2848.0,2847.8,3.50002196]
[1645910537551,3.5,2847.9,2847.8,3.50002196]
[1645910538158,0.506,2847.9,2847.8,3.50002196]
[1645910538463,0.28152713,2848.3,2847.8,3.50002196]
[1645910538464,0.1,2848.3,2847.8,3.50002196]
[1645910538656,7.226,2848.6,2847.8,3.50002196]
[1645910538857,0.506,2848.6,2847.8,3.50002196]
[1645910539155,0.75838708,2848.6,2847.8,3.50002196]
[1645910539357,0.1,2848.5,2847.8,3.50002196]
[1645910539756,1.69570997,2848.4,2847.8,3.50002196]
[1645910540156,0.25286838,2848.3,2847.8,3.50002196]
[1645910540412,0.506,2848.2,2847.8,3.50002196]
[1645910540618,0.506,2848.2,2847.8,2.40542196]
[1645910540812,0.26466736,2848.1,2847.8,2.40542196]
[1645910541016,1.89202149,2848.0,2847.8,2.40542196]
[1645910545856,12.68202149,2848.0,2847.8,2.40542196]
[1645910546062,1.89202149,2848.0,2847.8,2.40542196]
[1645910547659,1.38602149,2848.0,2847.8,2.40542196]
[1645910547898,0.506,2848.3,2847.8,2.40542196]
[1645910548100,0.506,2848.4,2847.8,2.40542196]
[1645910549409,2.0,2849.1,2848.0,0.8781801]
[1645910549803,6.7957,2849.3,2848.0,0.8781801]
[1645910550005,10.18207213,2849.5,2848.4,0.0124284]
[1645910550006,10.0,2849.5,2848.4,0.0124284]
[1645910550212,10.0,2849.5,2848.5,1.23072]
[1645910550213,0.01230534,2849.2,2848.5,1.23072]
[1645910550506,0.01230534,2849.2,2848.6,0.506]
[1645910550706,0.01230534,2849.2,2848.1,1.0]
[1645910550906,0.01230534,2849.2,2848.2,1.0]
[1645910551104,10.22397349,2849.5,2848.2,1.3]
[1645910551306,1.29825941,2848.8,2848.4,0.87807]
[1645910551557,1.29825941,2848.8,2848.4,2.6341416]
[1645910551759,0.01230577,2849.2,2848.5,0.8780213]
[1645910552261,10.0,2849.5,2848.5,0.8780213]
[1645910552459,0.01230587,2849.4,2848.5,0.8780213]
[1645910553461,10.0,2849.5,2848.6,0.87799]
[1645910553762,10.01230587,2849.5,2848.9,0.8779823]
[1645910553965,1.26081519,2849.0,2848.9,0.8779823]
[1645910554161,10.01230587,2849.5,2848.9,0.8779823]
[1645910554761,10.0,2849.5,2848.9,0.8779823]
[1645910555164,1.18621961,2849.4,2848.9,0.8779823]
[1645910555397,1.18621961,2849.4,2848.4,1.7560716]
[1645910555599,11.62142167,2849.3,2848.0,2.756372]
[1645910555794,0.23681399,2849.2,2848.0,2.756372]
[1645910555992,0.1,2849.1,2848.0,2.756372]
[1645910556506,1.01215857,2848.3,2848.0,2.756372]
[1645910556896,1.01215857,2848.3,2848.0,1.756372]
[1645910557298,1.01215857,2848.3,2847.6,1.76197161]
[1645910558299,1.01215857,2848.3,2847.6,1.7564]
[1645910558498,1.01215857,2848.3,2847.6,1.76197154]
[1645910558701,1.01215857,2848.3,2847.8,1.7564342]
[1645910564206,6.7642,2848.9,2847.9,0.8782154]
[1645910565304,6.7642,2848.9,2848.0,0.87816]
[1645910565511,2.25,2849.4,2848.2,0.8780088]
[1645910565512,2.0,2849.4,2848.2,0.8780088]
[1645910565707,0.00342451,2850.4,2848.4,2.64618201]
[1645910565905,6.9581,2851.1,2849.2,0.01289458]
[1645910565906,0.00307542,2849.9,2849.2,0.01289458]
[1645910566107,0.00307542,2849.9,2849.4,11.1429]
[1645910566305,0.00307542,2849.9,2849.7,0.3529]
[1645910566561,0.00307542,2849.9,2849.7,0.8775731]
[1645910567465,1.14909473,2849.9,2849.6,1.7551462]
[1645910567663,1.14909473,2849.9,2848.9,0.3529]
[1645910567664,1.14909473,2849.9,2849.3,1.7554]
[1645910567864,1.14909473,2849.9,2848.5,8.269]
[1645910568063,13.75485893,2849.8,2848.5,7.019]
[1645910568263,18.40655443,2849.8,2848.5,7.019]
[1645910568468,1.39628496,2848.7,2848.5,7.019]
[1645910568663,14.2065663,2849.7,2848.7,0.18626819]
[1645910568862,14.31783802,2849.7,2848.7,0.18626819]
[1645910569661,1.37425934,2849.0,2848.7,0.18626819]
[1645910570514,1.37425934,2849.0,2848.7,3.68626819]
[1645910571718,22.29,2848.9,2848.5,7.019]
[1645910571948,0.11127172,2848.8,2848.5,7.019]
[1645910572122,0.11127172,2848.8,2848.6,3.5]
[1645910572323,2.8362,2849.7,2848.5,7.019]
[1645910572517,2.8362,2849.7,2848.6,1.48359162]
[1645910572732,0.00342451,2849.9,2848.8,0.3529]
[1645910572922,0.00342451,2849.9,2848.7,12.54549]
[1645910572923,0.00342451,2849.9,2849.0,0.3529]
[1645910573125,7.81532451,2850.6,2849.6,0.3529]
[1645910573327,7.81532451,2850.6,2849.7,3.8529]
[1645910573521,0.00342451,2850.6,2849.7,2.1076861]
[1645910573720,0.00342451,2851.0,2849.7,2.1076861]
[1645910573925,0.00342451,2851.0,2849.7,2.4076861]
[1645910574143,0.00342451,2851.0,2849.7,6.9076861]
[1645910574345,1.1143849,2851.0,2850.0,0.3529]
[1645910574548,1.1143849,2851.0,2850.1,2.9848746]
[1645910574752,0.00342451,2851.0,2850.2,0.3529]
[1645910574955,0.5,2851.0,2850.4,0.3529]
[1645910575154,0.00342451,2851.4,2850.6,0.3529]
[1645910575351,0.00342451,2851.7,2851.0,0.3529]
[1645910575551,0.00342451,2851.9,2851.1,0.3529]
[1645910575756,1.82214215,2852.4,2851.4,5.0]
[1645910575757,0.06,2852.4,2851.4,5.0]
[1645910576054,36.75076297,2852.6,2851.3,1.3529]
[1645910576055,36.75076297,2852.6,2851.9,0.0129116]
[1645910576254,0.00339357,2852.4,2852.0,0.09997]
[1645910576453,36.75076297,2852.6,2852.2,1.0]
[1645910576454,3.5,2852.5,2852.2,1.0]
[1645910576651,36.75076297,2852.6,2852.3,7.0119]
[1645910576951,1.14208972,2852.5,2852.3,7.88871]
[1645910577151,1.14208972,2852.5,2852.3,7.0119]
[1645910577355,36.75076297,2852.6,2852.3,7.0119]
[1645910578505,1.2501403,2852.4,2852.3,7.0119]
[1645910578705,36.75076297,2852.6,2852.3,7.0119]
[1645910580605,36.75076297,2852.6,2852.3,6.8619]
[1645910581312,36.75076297,2852.6,2852.3,8.0916765]
[1645910581551,36.75076297,2852.6,2852.3,7.7387765]
[1645910581749,1.29278742,2852.5,2852.3,7.7387765]
[1645910581949,36.75076297,2852.6,2852.3,7.7387765]
[1645910582556,36.75076297,2852.6,2852.3,11.2387765]
[1645910582755,36.50076297,2852.6,2852.3,11.2387765]
[1645910582966,36.50076297,2852.6,2852.3,10.3619]
[1645910583756,36.50383255,2852.6,2852.3,10.3619]
[1645910583954,1.02925076,2852.5,2852.3,10.3619]
[1645910584354,0.97925076,2852.5,2852.3,10.3619]
[1645910584761,0.98232034,2852.5,2852.3,10.3619]
[1645910585701,0.97925076,2852.5,2852.3,10.3619]
[1645910586003,0.98232034,2852.5,2852.3,10.3619]
[1645910587004,0.97925076,2852.5,2852.3,11.2387964]
[1645910587204,0.98232034,2852.5,2852.3,10.2119]
[1645910588007,0.73232034,2852.5,2852.3,11.08874]
[1645910588209,0.72925076,2852.5,2852.3,11.0887815]
[1645910588507,0.00306958,2852.5,2852.3,11.0887815]
[1645910589164,0.00306958,2852.5,2852.3,12.9656215]
[1645910589468,36.50076297,2852.6,2852.3,12.9656215]
[1645910589660,0.00306958,2852.5,2852.3,12.9656215]
[1645910590465,0.00306958,2852.5,2852.3,12.0887815]
[1645910590665,36.50076297,2852.6,2852.3,12.0887815]
[1645910590862,36.50076297,2852.6,2852.3,11.0887815]
[1645910590863,0.00306958,2852.5,2852.3,11.0887815]
[1645910591272,0.00306958,2852.5,2852.3,10.2119]
[1645910591868,36.50076297,2852.6,2852.3,10.2119]
[1645910592068,1.32882337,2852.4,2852.3,10.2119]
[1645910592272,0.00306958,2852.5,2852.3,10.2119]
[1645910592912,36.50076297,2852.6,2852.3,10.2119]
[1645910593107,36.50076297,2852.6,2852.3,11.08873]
[1645910593308,0.00306958,2852.5,2852.3,11.08873]
[1645910594108,36.50076297,2852.6,2852.3,11.08873]
[1645910594307,36.45441773,2852.6,2852.3,11.9656088]
[1645910594509,36.40534281,2852.6,2852.3,11.9656088]
[1645910594907,36.40534281,2852.6,2852.3,12.3185088]
[1645910595117,0.01757385,2853.0,2852.6,1.58049564]
[1645910595319,0.00339357,2853.5,2852.9,0.01260744]
[1645910595518,0.20339357,2853.6,2853.0,7.7322]
[1645910595714,3.70339357,2853.6,2853.0,8.3102]
[1645910595912,3.70339357,2853.6,2853.0,7.3102]
[1645910596115,0.20339357,2853.6,2853.0,7.3102]
[1645910597464,0.20339357,2853.6,2853.0,8.6102]
[1645910597668,3.70339357,2853.6,2853.0,7.3102]
[1645910598071,0.16826913,2853.6,2853.0,7.3102]
[1645910598267,0.16487556,2853.6,2853.0,7.3102]
[1645910598465,0.11487556,2853.6,2853.0,7.3102]
[1645910599263,0.00302352,2853.4,2853.0,7.3102]
[1645910600297,0.11487556,2853.6,2853.0,7.3102]
[1645910600501,0.00302352,2853.3,2853.1,0.87657]
[1645910601304,0.11487556,2853.6,2853.1,0.87657]
[1645910601706,0.11487556,2853.6,2853.2,0.8765787]
[1645910601707,0.00302352,2853.3,2853.2,0.8765787]
[1645910601903,0.00302352,2853.3,2853.2,0.1765787]
[1645910602705,0.11487556,2853.6,2853.2,0.1765787]
[1645910602904,0.06789908,2853.6,2853.2,0.1765787]
[1645910605560,0.06789908,2853.6,2853.3,1.75283]
[1645910605765,0.0996,2854.1,2853.4,0.7749]
[1645910605965,0.0996,2854.1,2853.5,1.2291579]
[1645910606961,0.00339357,2854.5,2853.5,2.9816479]
[1645910607164,0.0033782,2854.5,2853.9,0.87633]
[1645910607369,1.37484377,2854.7,2853.7,1.7526417]
[1645910607370,0.0033782,2854.7,2853.7,1.7526417]
[1645910607570,0.00206518,2854.5,2853.2,3.922]
[1645910607806,0.00301597,2854.1,2853.2,4.922]
[1645910608012,0.00301597,2854.1,2853.3,0.1401]
[1645910608213,1.11198892,2854.0,2853.3,0.1401]
[1645910608616,1.11198892,2854.0,2852.3,1.7534]
[1645910608617,27.29,2853.7,2852.3,1.7534]
[1645910608812,27.29,2853.7,2852.5,0.5]
[1645910608813,0.01284046,2853.4,2852.5,0.5]
[1645910609113,10.79,2853.3,2852.8,0.00558479]
[1645910609310,0.5,2852.9,2852.8,0.00558479]
[1645910609512,0.5752,2853.0,2852.8,8.479e-05]
[1645910609712,11.09206518,2852.9,2852.8,8.479e-05]
[1645910609910,11.23216518,2852.9,2851.2,0.5]
[1645910610109,0.01000539,2852.5,2851.2,0.5]
[1645910610509,1.38736243,2851.4,2851.1,0.8771672]